fUST/lending_fUST_20260622
["ID","MTS","AMOUNT","RATE_DAILY","PERIOD"]
[426067780,1782133841000,-745.89,0.00019266,2]
[426067778,1782133841000,-500.0,0.00019266,2]
[426067779,1782133841000,-745.89,0.00019266,2]
[426067782,1782133841000,-500.0,0.00019266,2]
[426067785,1782133841000,-500.0,0.00019266,2]
[426067783,1782133841000,-500.0,0.00019266,2]
[426067784,1782133841000,-500.0,0.00019266,2]
[426067786,1782133841000,-500.0,0.00019266,2]
[426067790,1782133841000,-936.89,0.00019266,2]
[426067788,1782133841000,-500.0,0.00019266,2]
[426067789,1782133841000,-500.0,0.00019266,2]
[426067787,1782133841000,-363.03344242,0.00019266,2]
[426067791,1782133841000,-500.0,0.00019266,2]
[426067792,1782133841000,-620.55295676,0.00019268,2]
[426067794,1782133841000,-219.13829125,0.00019269,2]
[426067793,1782133841000,-745.89,0.00019268,2]
[426067796,1782133841000,-500.0,0.00019269,2]
[426067797,1782133841000,-517.16447537,0.00019269,2]
[426067795,1782133841000,-503.57511068,0.00019269,2]
[426067798,1782133841000,-501.5565488,0.00019269,2]
[426067799,1782133841000,-508.77491786,0.00019269,2]
[426067800,1782133841000,-502.78345502,0.00019269,2]
[426067802,1782133841000,-505.80427462,0.00019269,2]
[426067803,1782133841000,-500.0,0.00019269,2]
[426067804,1782133841000,-506.37127123,0.00019269,2]
[426067744,1782133841000,-300.86142249,0.00019258,2]
[426067776,1782133841000,-501.39710488,0.00019266,2]
[426067777,1782133841000,-500.0,0.00019266,2]
[426067801,1782133841000,-505.09873456,0.00019269,2]
[426067775,1782133841000,-500.0,0.00019266,2]
[426067774,1782133841000,-514.48475579,0.00019266,2]
[426067746,1782133841000,-176.18172961,0.00019258,2]
[426067747,1782133841000,-180.30451674,0.00019258,2]
[426067748,1782133841000,-183.71602591,0.00019258,2]
[426067751,1782133841000,-504.49482595,0.00019266,2]
[426067752,1782133841000,-510.12230422,0.00019266,2]
[426067753,1782133841000,-500.0,0.00019266,2]
[426067750,1782133841000,-184.4249988,0.00019258,2]
[426067755,1782133841000,-500.0,0.00019266,2]
[426067749,1782133841000,-167.9938769,0.00019258,2]
[426067756,1782133841000,-500.0,0.00019266,2]
[426067754,1782133841000,-500.0,0.00019266,2]
[426067757,1782133841000,-501.82378282,0.00019266,2]
[426067759,1782133841000,-516.93810313,0.00019266,2]
[426067745,1782133841000,-173.88438142,0.00019258,2]
[426067762,1782133841000,-500.0,0.00019266,2]
[426067771,1782133841000,-500.0,0.00019266,2]
[426067773,1782133841000,-500.0,0.00019266,2]
[426067772,1782133841000,-500.0,0.00019266,2]
[426067770,1782133841000,-475.55118748,0.00019266,2]
[426067760,1782133841000,-500.0,0.00019266,2]
[426067766,1782133841000,-500.0,0.00019266,2]
[426067768,1782133841000,-506.09076781,0.00019266,2]
[426067769,1782133841000,-500.0,0.00019266,2]
[426067765,1782133841000,-500.0,0.00019266,2]
[426067763,1782133841000,-500.0,0.00019266,2]
[426067764,1782133841000,-500.0,0.00019266,2]
[426067767,1782133841000,-500.0,0.00019266,2]
[426067761,1782133841000,-503.53143992,0.00019266,2]
[426067846,1782133842000,-500.0,0.00019269,2]
[426067844,1782133842000,-140.12411712,0.00019269,2]
[426067842,1782133842000,-500.0,0.00019269,2]
[426067841,1782133842000,-502.08773277,0.00019269,2]
[426067840,1782133842000,-500.0,0.00019269,2]
[426067839,1782133842000,-500.0,0.00019269,2]
[426067835,1782133842000,-500.0,0.00019269,2]
[426067837,1782133842000,-500.0,0.00019269,2]
[426067838,1782133842000,-500.0,0.00019269,2]
[426067836,1782133842000,-500.0,0.00019269,2]
[426067843,1782133842000,-359.87588288,0.00019269,2]
[426067847,1782133842000,-500.0,0.00019269,2]
[426067851,1782133842000,-500.0,0.00019269,2]
[426067845,1782133842000,-500.0,0.00019269,2]
[426067849,1782133842000,-501.30095042,0.00019269,2]
[426067850,1782133842000,-500.0,0.00019269,2]
[426067852,1782133842000,-500.0,0.00019269,2]
[426067853,1782133842000,-500.0,0.00019269,2]
[426067855,1782133842000,-500.0,0.00019269,2]
[426067858,1782133842000,-500.0,0.00019269,2]
[426067857,1782133842000,-510.67931553,0.00019269,2]
[426067854,1782133842000,-500.0,0.00019269,2]
[426067856,1782133842000,-500.0,0.00019269,2]
[426067834,1782133842000,-500.0,0.00019269,2]
[426067859,1782133842000,-500.0,0.00019269,2]
[426067848,1782133842000,-500.0,0.00019269,2]
[426067832,1782133842000,-512.58353303,0.00019269,2]
[426067819,1782133842000,-502.53471792,0.00019269,2]
[426067831,1782133842000,-500.0,0.00019269,2]
[426067860,1782133842000,-234.49588971,0.00019269,2]
[426067805,1782133842000,-535.40810372,0.00019269,2]
[426067806,1782133842000,-510.92457249,0.00019269,2]
[426067807,1782133842000,-509.34379534,0.00019269,2]
[426067808,1782133842000,-200.82483486,0.00019269,2]
[426067816,1782133842000,-517.52156238,0.00019269,2]
[426067809,1782133842000,-504.9263256,0.00019269,2]
[426067815,1782133842000,-500.0,0.00019269,2]
[426067812,1782133842000,-507.89015728,0.00019269,2]
[426067811,1782133842000,-619.684076,0.00019269,2]
[426067813,1782133842000,-519.88813618,0.00019269,2]
[426067814,1782133842000,-510.81983501,0.00019269,2]
[426067833,1782133842000,-504.26123636,0.00019269,2]
[426067810,1782133842000,-452.19172157,0.00019269,2]
[426067818,1782133842000,-531.93080313,0.00019269,2]
[426067822,1782133842000,-525.53983413,0.00019269,2]
[426067823,1782133842000,-500.0,0.00019269,2]
[426067820,1782133842000,-500.0,0.00019269,2]
[426067821,1782133842000,-532.24037528,0.00019269,2]
[426067825,1782133842000,-575.15499252,0.00019269,2]
[426067827,1782133842000,-504.00838504,0.00019269,2]
[426067826,1782133842000,-500.0,0.00019269,2]
[426067824,1782133842000,-500.0,0.00019269,2]
[426067828,1782133842000,-533.41629483,0.00019269,2]
[426067829,1782133842000,-500.0,0.00019269,2]
[426067830,1782133842000,-524.43777367,0.00019269,2]
[426067817,1782133842000,-500.0,0.00019269,2]
[426067861,1782133842000,-500.0,0.00019269,2]
[426067871,1782133842000,-500.0,0.00019338,2]
[426067863,1782133842000,-500.0,0.00019269,2]
[426067892,1782133842000,-500.0,0.0001954,2]
[426067901,1782133842000,-500.0,0.00019543,2]
[426067891,1782133842000,-500.0,0.0001954,2]
[426067893,1782133842000,-500.0,0.0001954,2]
[426067903,1782133842000,-463.79962751,0.00019612,2]
[426067906,1782133842000,-232.09762282,0.000197,2]
[426067894,1782133842000,-936.89,0.0001954,2]
[426067910,1782133842000,-160.0,0.00019751,2]
[426067913,1782133842000,-153.96745388,0.00019773,2]
[426067912,1782133842000,-273.63258359,0.00019773,2]
[426067916,1782133842000,-239.58308402,0.00019773,2]
[426067909,1782133842000,-160.0,0.0001975,2]
[426067895,1782133842000,-500.0,0.00019542,2]
[426067907,1782133842000,-160.0,0.00019749,2]
[426067914,1782133842000,-451.29213373,0.00019773,2]
[426067915,1782133842000,-347.76876283,0.00019773,2]
[426067862,1782133842000,-500.0,0.00019269,2]
[426067918,1782133842000,-360.60903347,0.00019773,2]
[426067917,1782133842000,-352.36345922,0.00019773,2]
[426067919,1782133842000,-367.43205182,0.00019773,2]
[426067921,1782133842000,-368.84999761,0.00019773,2]
[426067920,1782133842000,-335.98775379,0.00019773,2]
[426067922,1782133842000,-272.42155922,0.00019788,2]
[426067924,1782133842000,-500.0,0.00019804,2]
[426067925,1782133842000,-500.0,0.00019804,2]
[426067923,1782133842000,-500.0,0.00019804,2]
[426067911,1782133842000,-170.38929184,0.00019773,2]
[426067904,1782133842000,-500.0,0.00019612,2]
[426067908,1782133842000,-417.15472785,0.00019749,2]
[426067905,1782133842000,-862.28764582,0.000197,2]
[426067897,1782133842000,-500.0,0.00019542,2]
[426067864,1782133842000,-500.0,0.00019269,2]
[426067866,1782133842000,-583.34576148,0.00019269,2]
[426067868,1782133842000,-500.0,0.00019269,2]
[426067865,1782133842000,-514.22211839,0.00019269,2]
[426067867,1782133842000,-509.79677913,0.00019269,2]
[426067869,1782133842000,-285.86101947,0.00019279,30]
[426067870,1782133842000,-500.0,0.00019338,2]
[426067874,1782133842000,-186.0,0.00019527,2]
[426067873,1782133842000,-445.0,0.00019527,2]
[426067875,1782133842000,-500.0,0.0001953,2]
[426067877,1782133842000,-500.0,0.0001953,2]
[426067872,1782133842000,-203.80392407,0.00019451,2]
[426067878,1782133842000,-500.0,0.00019532,2]
[426067899,1782133842000,-500.0,0.00019542,2]
[426067876,1782133842000,-500.0,0.0001953,2]
[426067889,1782133842000,-500.0,0.0001954,2]
[426067890,1782133842000,-503.16117783,0.0001954,2]
[426067886,1782133842000,-500.0,0.0001954,2]
[426067883,1782133842000,-504.22069536,0.0001954,2]
[426067887,1782133842000,-500.0,0.0001954,2]
[426067885,1782133842000,-500.0,0.0001954,2]
[426067879,1782133842000,-473.14042628,0.00019532,2]
[426067880,1782133842000,-26.85957372,0.00019532,2]
[426067882,1782133842000,-500.0,0.00019532,2]
[426067881,1782133842000,-500.0,0.00019532,2]
[426067950,1782133843000,-745.89,0.00019998,2]
[426067956,1782133843000,-500.0,0.00020078,2]
[426067949,1782133843000,-232.09762282,0.000199,2]
[426067951,1782133843000,-501.09973879,0.00019999,2]
[426067953,1782133843000,-615.0,0.0002,2]
[426067954,1782133843000,-153.0,0.0002,2]
[426067955,1782133843000,-500.0,0.00020078,2]
[426067960,1782133843000,-500.0,0.0002008,2]
[426067964,1782133843000,-500.0,0.00020088,2]
[426067958,1782133843000,-500.0,0.0002008,2]
[426067957,1782133843000,-500.0,0.00020078,2]
[426067961,1782133843000,-500.0,0.0002008,2]
[426067962,1782133843000,-500.0,0.00020088,2]
[426067965,1782133843000,-500.0,0.00020088,2]
[426067947,1782133843000,-500.0,0.00019886,2]
[426067966,1782133843000,-936.89,0.00020088,2]
[426067959,1782133843000,-500.0,0.0002008,2]
[426067952,1782133843000,-500.0,0.00019999,2]
[426067934,1782133843000,-500.0,0.00019814,2]
[426067946,1782133843000,-1842.0,0.00019817,2]
[426067967,1782133843000,-500.0,0.0002009,2]
[426067926,1782133843000,-500.0,0.00019806,2]
[426067927,1782133843000,-500.0,0.00019806,2]
[426067928,1782133843000,-500.0,0.00019806,2]
[426067929,1782133843000,-500.0,0.00019806,2]
[426067930,1782133843000,-188.62,0.00019814,2]
[426067932,1782133843000,-435.38,0.00019814,2]
[426067935,1782133843000,-500.0,0.00019814,2]
[426067938,1782133843000,-936.89,0.00019814,2]
[426067939,1782133843000,-745.89,0.00019815,2]
[426067936,1782133843000,-500.0,0.00019814,2]
[426067937,1782133843000,-500.0,0.00019814,2]
[426067942,1782133843000,-500.0,0.00019816,2]
[426067941,1782133843000,-745.89,0.00019815,2]
[426067943,1782133843000,-500.0,0.00019816,2]
[426067945,1782133843000,-1419.0,0.00019817,2]
[426067944,1782133843000,-500.0,0.00019816,2]
[426067948,1782133843000,-862.28764582,0.000199,2]
[426067968,1782133843000,-500.0,0.0002009,2]
[426067963,1782133843000,-500.0,0.00020088,2]
[426067973,1782133843000,-547.26516719,0.00020115,2]
[426067994,1782133843000,-500.0,0.00020364,2]
[426067993,1782133843000,-500.0,0.00020364,2]
[426067996,1782133843000,-745.89,0.00020546,2]
[426067995,1782133843000,-500.0,0.00020364,2]
[426067998,1782133843000,-232.09762282,0.000206,2]
[426068000,1782133843000,-936.89,0.00020636,2]
[426067997,1782133843000,-862.28764582,0.000206,2]
[426067999,1782133843000,-265.46,0.00020627,2]
[426068001,1782133843000,-239.35,0.00020638,2]
[426068003,1782133843000,-186.97,0.00020638,2]
[426068004,1782133843000,-118.54928327,0.00020857,2]
[426068005,1782133843000,-32.91625519,0.00020857,2]
[426068006,1782133843000,-936.89,0.0002091,2]
[426068008,1782133843000,-615.0,0.00021,2]
[426068009,1782133843000,-1077.69374481,0.00021,4]
[426068007,1782133843000,-500.0,0.00020912,2]
[426067970,1782133843000,-862.28764582,0.000201,2]
[426067992,1782133843000,-936.89,0.00020362,2]
[426067991,1782133843000,-214.81,0.00020362,2]
[426068002,1782133843000,-500.0,0.00020638,2]
[426067981,1782133843000,-580.88,0.0002016,2]
[426067990,1782133843000,-224.69,0.00020362,2]
[426067969,1782133843000,-500.0,0.0002009,2]
[426067972,1782133843000,-340.77858368,0.00020115,2]
[426067971,1782133843000,-232.09762282,0.000201,2]
[426067976,1782133843000,-601.72284498,0.00020115,2]
[426067977,1782133843000,-528.54518883,0.00020115,2]
[426067979,1782133843000,-503.98163069,0.0002013,2]
[426067978,1782133843000,-553.27499641,0.00020115,2]
[426067975,1782133843000,-219.22068512,0.00020115,2]
[426067982,1782133843000,-862.28764582,0.000203,2]
[426067986,1782133843000,-641.61,0.00020352,2]
[426067980,1782133843000,-544.84311843,0.00020131,2]
[426067988,1782133843000,-504.25,0.00020353,2]
[426067984,1782133843000,-180.05761844,0.00020301,2]
[426067983,1782133843000,-232.09762282,0.000203,2]
[426067974,1782133843000,-307.93490777,0.00020115,2]
[426067985,1782133843000,-300.0,0.00020301,3]
[426067989,1782133843000,-500.0,0.00020353,2]
[426067987,1782133843000,-500.0,0.00020353,2]
[426068040,1782133844000,-745.89,0.0002117,2]
[426068041,1782133844000,-745.98,0.0002117,2]
[426068042,1782133844000,-38497.8434,0.0002117,2]
[426068049,1782133844000,-161.0,0.00021435,30]
[426068050,1782133844000,-155.0,0.00021435,30]
[426068047,1782133844000,-600.0,0.00021394,10]
[426068046,1782133844000,-320.13,0.00021186,2]
[426068048,1782133844000,-615.0,0.00021428,30]
[426068052,1782133844000,-173.0,0.00021435,30]
[426068051,1782133844000,-153.0,0.00021435,30]
[426068044,1782133844000,-936.89,0.00021184,2]
[426068063,1782133844000,-1000.0,0.00021917,2]
[426068056,1782133844000,-2297.4745675,0.0002177,2]
[426068058,1782133844000,-3465.42490888,0.000218,30]
[426068054,1782133844000,-936.89,0.00021732,2]
[426068057,1782133844000,-411.39665337,0.000218,30]
[426068059,1782133844000,-3465.42490887,0.000218,30]
[426068060,1782133844000,-3465.42490887,0.000218,30]
[426068062,1782133844000,-1000.0,0.00021917,2]
[426068061,1782133844000,-156.0,0.00021808,5]
[426068065,1782133844000,-1000.0,0.00021917,2]
[426068068,1782133844000,-1000.0,0.00021917,2]
[426068071,1782133844000,-193.10458461,0.00021976,2]
[426068038,1782133844000,-745.89,0.0002117,2]
[426068055,1782133844000,-1458.518722,0.00021733,30]
[426068036,1782133844000,-745.89,0.0002117,2]
[426068016,1782133844000,-745.89,0.00021054,2]
[426068032,1782133844000,-1000.0,0.00021054,2]
[426068012,1782133844000,-182.574101,0.00021032,2]
[426068010,1782133844000,-2279.97749412,0.00021,4]
[426068011,1782133844000,-153.0,0.00021,2]
[426068014,1782133844000,-745.89,0.00021054,2]
[426068013,1782133844000,-745.89,0.00021054,2]
[426068015,1782133844000,-745.89,0.00021054,2]
[426068017,1782133844000,-745.89,0.00021054,2]
[426068067,1782133844000,-1000.0,0.00021917,2]
[426068019,1782133844000,-242.30619603,0.00021054,2]
[426068021,1782133844000,-745.89,0.00021054,2]
[426068020,1782133844000,-503.58380397,0.00021054,2]
[426068018,1782133844000,-745.89,0.00021054,2]
[426068022,1782133844000,-253.86649405,0.00021054,2]
[426068023,1782133844000,-492.02350595,0.00021054,2]
[426068025,1782133844000,-339.19627192,0.00021054,2]
[426068024,1782133844000,-745.89,0.00021054,2]
[426068026,1782133844000,-406.69372808,0.00021054,2]
[426068027,1782133844000,-1000.0,0.00021054,2]
[426068028,1782133844000,-1000.0,0.00021054,2]
[426068030,1782133844000,-1000.0,0.00021054,2]
[426068029,1782133844000,-1000.0,0.00021054,2]
[426068035,1782133844000,-745.89,0.0002117,2]
[426068034,1782133844000,-589.71023031,0.00021054,2]
[426068033,1782133844000,-1000.0,0.00021054,2]
[426068031,1782133844000,-1000.0,0.00021054,2]
[426068037,1782133844000,-745.89,0.0002117,2]
[426068069,1782133844000,-1000.0,0.00021917,2]
[426068053,1782133844000,-936.89,0.00021458,2]
[426068066,1782133844000,-1000.0,0.00021917,2]
[426068108,1782133844000,-524.37,0.0002287,30]
[426068107,1782133844000,-500.0,0.0002287,30]
[426068102,1782133844000,-500.0,0.0002287,30]
[426068105,1782133844000,-500.0,0.0002287,30]
[426068106,1782133844000,-500.0,0.0002287,30]
[426068103,1782133844000,-500.0,0.0002287,30]
[426068104,1782133844000,-500.0,0.0002287,30]
[426068110,1782133844000,-1587.9420679,0.0002287,14]
[426068109,1782133844000,-771.40814212,0.0002287,2]
[426068112,1782133844000,-1199.66951959,0.0002287,15]
[426068111,1782133844000,-838.39216624,0.0002287,15]
[426068115,1782133844000,-334.9050609,0.0002287,2]
[426068113,1782133844000,-462.11718098,0.0002287,7]
[426068114,1782133844000,-245.54,0.0002287,2]
[426068119,1782133844000,-165.0,0.0002287,120]
[426068118,1782133844000,-153.0,0.0002287,120]
[426068116,1782133844000,-161.0,0.0002287,120]
[426068117,1782133844000,-155.0,0.0002287,120]
[426068121,1782133844000,-160.0,0.0002287,120]
[426068120,1782133844000,-169.0,0.0002287,120]
[426068123,1782133844000,-158.0,0.0002287,120]
[426068125,1782133844000,-500.0,0.0002287,30]
[426068124,1782133844000,-500.0,0.0002287,30]
[426068122,1782133844000,-168.0,0.0002287,120]
[426068126,1782133844000,-500.0,0.0002287,30]
[426068101,1782133844000,-155.0,0.00022855,120]
[426068097,1782133844000,-936.89,0.00022828,2]
[426068099,1782133844000,-615.0,0.00022855,120]
[426068096,1782133844000,-248.79343506,0.00022828,2]
[426068070,1782133844000,-1000.0,0.00021917,2]
[426068072,1782133844000,-615.0,0.00022,2]
[426068074,1782133844000,-586.0,0.00022,2]
[426068073,1782133844000,-153.0,0.00022,2]
[426068075,1782133844000,-936.89,0.00022006,2]
[426068076,1782133844000,-1000.0,0.00022008,2]
[426068079,1782133844000,-586.0,0.00022192,7]
[426068077,1782133844000,-1107.8436061,0.00022065,2]
[426068084,1782133844000,-1013.11,0.000223,5]
[426068098,1782133844000,-1000.0,0.0002283,2]
[426068078,1782133844000,-220.60844469,0.00022085,2]
[426068082,1782133844000,-936.89,0.0002228,2]
[426068081,1782133844000,-159.16284161,0.0002228,2]
[426068080,1782133844000,-248.79343506,0.0002228,2]
[426068085,1782133844000,-615.0,0.00022428,30]
[426068095,1782133844000,-1839.0,0.00022817,2]
[426068083,1782133844000,-1000.0,0.00022282,2]
[426068088,1782133844000,-153.0,0.00022435,30]
[426068092,1782133844000,-158.0,0.00022643,120]
[426068093,1782133844000,-521.83247012,0.000228,120]
[426068094,1782133844000,-388.038,0.00022817,2]
[426068090,1782133844000,-936.89,0.00022554,2]
[426068089,1782133844000,-186.0,0.00022527,2]
[426068087,1782133844000,-155.0,0.00022435,30]
[426068086,1782133844000,-164.0,0.00022435,30]
[426068091,1782133844000,-1000.0,0.00022556,2]
[426068064,1782133844000,-1000.0,0.00021917,2]
[426068128,1782133845000,-500.0,0.0002287,30]
[426068133,1782133845000,-600.0,0.00020415,2]
[426068134,1782133845000,-4313.35858039,0.000229,5]
[426068132,1782133845000,-823.33734377,0.000229,5]
[426068131,1782133845000,-179.97106926,0.0002287,120]
[426068127,1782133845000,-500.0,0.0002287,30]
[426068130,1782133845000,-156.0,0.0002287,120]
[426068129,1782133845000,-500.0,0.0002287,30]
[426068145,1782133847000,-14340.59238438,0.000229,5]
[426068144,1782133847000,-141709.91571271,0.000229,5]
[426068160,1782134044000,287.07203335,0.00011,13]
[426068162,1782134059000,734.89386237,0.00011,13]
[426068166,1782134130000,170.0,0.00020512,120]
[426068167,1782134132000,170.0,0.00021537,120]
[426068316,1782135032000,-486.93176336,0.00018358,2]
[426068312,1782135032000,-918.91088526,0.000111,2]
[426068310,1782135032000,-288.01775177,0.00011025,7]
[426068314,1782135032000,-186.0,0.00017614,2]
[426068515,1782135038000,-323.24389914,0.00020108,2]
[426068517,1782135038000,-360.60903347,0.00020131,2]
[426068523,1782135038000,-500.0,0.00020995,2]
[426068510,1782135038000,-158.74675216,0.0002,2]
[426068512,1782135038000,-431.0,0.0002,2]
[426068508,1782135038000,-159.72205601,0.00019791,2]
[426068499,1782135038000,-601.3307509,0.00019266,2]
[426068501,1782135038000,-160.0,0.00019762,2]
[426068503,1782135038000,-180.30451673,0.00019788,2]
[426068514,1782135038000,-438.71407431,0.00020108,2]
[426068497,1782135038000,-597.96102118,0.00019063,2]
[426068493,1782135038000,-513.06823664,0.00018358,2]
[426068495,1782135038000,-198.0,0.00019041,3]
[426068504,1782135038000,-183.71602591,0.00019788,2]
[426068519,1782135038000,-347.76876283,0.00020134,2]
[426068506,1782135038000,-173.88438141,0.00019788,2]
[426068527,1782135038000,-500.0,0.00020995,2]
[426068555,1782135038000,-447.42726816,0.00021599,2]
[426068552,1782135038000,-14398.94052372,0.00021599,2]
[426068549,1782135038000,-74190.76526168,0.00021599,2]
[426068543,1782135038000,-154.0,0.00021437,30]
[426068547,1782135038000,-500.0,0.00021545,2]
[426068545,1782135038000,-500.0,0.00021543,2]
[426068541,1782135038000,-431.0,0.00021435,30]
[426068540,1782135038000,-158.0,0.00021435,30]
[426068538,1782135038000,-600.0,0.00021418,10]
[426068536,1782135038000,-500.0,0.00021271,2]
[426068534,1782135038000,-500.0,0.00021269,2]
[426068532,1782135038000,-164.841,0.00021166,2]
[426068528,1782135038000,-500.0,0.00020997,2]
[426068530,1782135038000,-431.0,0.00021,2]
[426068521,1782135038000,-319.44411202,0.00020134,2]
[426068525,1782135038000,-500.0,0.00020995,2]
[426068654,1782135043000,-13864.33523906,0.00021599,2]
[426068665,1782135046000,-2381.7529171,0.00021599,2]
[426068666,1782135046000,-18390.86990329,0.00021599,2]
[426068698,1782135607000,181.0,0.00021289,120]
[426068699,1782135608000,181.0,0.00022353,120]
[426068704,1782135793000,261.8522812,0.00022602,120]
[426068814,1782136242000,-300.0,0.00012536,2]
[426068813,1782136242000,-300.0,0.00012536,2]
[426068811,1782136242000,-300.0,0.00012536,2]
[426068812,1782136242000,-300.0,0.00012536,2]
[426068807,1782136242000,-300.0,0.00012536,2]
[426068806,1782136242000,-5000.0,0.00012291,2]
[426068810,1782136242000,-300.0,0.00012536,2]
[426068809,1782136242000,-300.0,0.00012536,2]
[426068816,1782136242000,-300.0,0.00012536,2]
[426068815,1782136242000,-300.0,0.00012536,2]
[426068818,1782136242000,-300.0,0.00012536,2]
[426068805,1782136242000,-5000.0,0.00012291,2]
[426068804,1782136242000,-1772.65821929,0.00012168,13]
[426068808,1782136242000,-300.0,0.00012536,2]
[426068826,1782136242000,-1000.0,0.00016932,2]
[426068834,1782136242000,-500.0,0.00017291,2]
[426068828,1782136242000,-503.80640722,0.00017017,2]
[426068822,1782136242000,-600.0,0.00012786,2]
[426068835,1782136242000,-500.0,0.00017565,2]
[426068839,1782136242000,-500.0,0.00017839,2]
[426068832,1782136242000,-500.0,0.00017291,2]
[426068820,1782136242000,-300.0,0.00012536,2]
[426068831,1782136242000,-1000.0,0.00017018,2]
[426068837,1782136242000,-500.0,0.00017565,2]
[426068817,1782136242000,-300.0,0.00012536,2]
[426068819,1782136242000,-300.0,0.00012536,2]
[426068830,1782136242000,-500.0,0.00017017,2]
[426068827,1782136242000,-500.0,0.00017017,2]
[426068821,1782136242000,-300.0,0.00012536,2]
[426068825,1782136242000,-864.0,0.00015471,2]
[426068823,1782136242000,-720.0,0.00014064,2]
[426068886,1782136243000,-500.0,0.00018283,2]
[426068883,1782136243000,-500.0,0.00018283,2]
[426068881,1782136243000,-500.0,0.00018283,2]
[426068882,1782136243000,-500.0,0.00018283,2]
[426068888,1782136243000,-500.0,0.00018283,2]
[426068878,1782136243000,-500.0,0.00018283,2]
[426068884,1782136243000,-500.0,0.00018283,2]
[426068879,1782136243000,-500.0,0.00018283,2]
[426068889,1782136243000,-500.0,0.00018283,2]
[426068875,1782136243000,-500.0,0.00018283,2]
[426068887,1782136243000,-500.0,0.00018283,2]
[426068880,1782136243000,-500.0,0.00018283,2]
[426068890,1782136243000,-500.0,0.00018283,2]
[426068893,1782136243000,-500.0,0.00018283,2]
[426068898,1782136243000,-500.0,0.00018283,2]
[426068901,1782136243000,-500.0,0.00018283,2]
[426068894,1782136243000,-500.0,0.00018283,2]
[426068892,1782136243000,-500.0,0.00018283,2]
[426068891,1782136243000,-500.0,0.00018283,2]
[426068897,1782136243000,-500.0,0.00018283,2]
[426068877,1782136243000,-500.0,0.00018283,2]
[426068896,1782136243000,-500.0,0.00018283,2]
[426068895,1782136243000,-500.0,0.00018283,2]
[426068900,1782136243000,-500.0,0.00018283,2]
[426068903,1782136243000,-500.0,0.00018283,2]
[426068904,1782136243000,-500.0,0.00018283,2]
[426068906,1782136243000,-958.0,0.00018284,2]
[426068899,1782136243000,-400.11368713,0.00018283,2]
[426068872,1782136243000,-500.0,0.00018283,2]
[426068868,1782136243000,-500.0,0.00018283,2]
[426068873,1782136243000,-500.0,0.00018283,2]
[426068843,1782136243000,-500.0,0.00018113,2]
[426068844,1782136243000,-3625.17155212,0.00018183,2]
[426068848,1782136243000,-173.08338594,0.00018283,2]
[426068846,1782136243000,-500.0,0.00018283,2]
[426068850,1782136243000,-500.0,0.00018283,2]
[426068841,1782136243000,-500.0,0.00017839,2]
[426068852,1782136243000,-500.0,0.00018283,2]
[426068851,1782136243000,-500.0,0.00018283,2]
[426068842,1782136243000,-500.0,0.00018113,2]
[426068853,1782136243000,-500.0,0.00018283,2]
[426068855,1782136243000,-500.0,0.00018283,2]
[426068856,1782136243000,-500.0,0.00018283,2]
[426068861,1782136243000,-500.0,0.00018283,2]